bitfinex/quotes_BTCUSD_20240718
["timestamp","ask_amount","ask_price","bid_price","bid_amount"]
[1721313466529,0.07717479,64208.0,64199.0,0.31153]
[1721313466530,0.07717479,64208.0,64206.0,0.155747]
[1721313466779,0.00083,64215.0,64207.0,0.311491]
[1721313466780,0.12217479,64211.0,64207.0,0.311491]
[1721313467014,0.12217479,64211.0,64210.0,0.155738]
[1721313467247,0.07717479,64211.0,64210.0,0.155738]
[1721313467478,0.003,64212.0,64211.0,0.778682]
[1721313467735,0.00083,64215.0,64214.0,0.467187]
[1721313467956,0.045,64210.0,64206.0,0.311494]
[1721313468186,0.07717479,64207.0,64206.0,0.3426434]
[1721313468449,0.045,64210.0,64206.0,0.0311494]
[1721313468704,0.00083,64215.0,64214.0,0.155729]
[1721313468919,0.00083,64215.0,64214.0,0.1556651]
[1721313469157,0.00083,64215.0,64214.0,0.97967755]
[1721313469382,0.00083,64215.0,64214.0,1.06197755]
[1721313469644,0.00083,64215.0,64214.0,1.37343555]
[1721313469888,0.07717479,64225.0,64224.0,0.778525]
[1721313470828,0.045,64234.0,64224.0,0.778525]
[1721313470829,0.07717479,64243.0,64230.0,0.1414]
[1721313471081,0.002794,64242.0,64231.0,0.15749503]
[1721313471317,0.002794,64242.0,64241.0,0.155663]
[1721313471534,0.07717479,64243.0,64242.0,0.155661]
[1721313472009,0.07717479,64243.0,64232.0,0.311369]
[1721313472010,0.045,64236.0,64232.0,0.311369]
[1721313472239,0.07717479,64235.0,64234.0,0.15568]
[1721313472500,0.07717479,64235.0,64234.0,0.46704]
[1721313472739,0.07717479,64243.0,64242.0,0.155661]
[1721313472964,0.07717479,64243.0,64234.0,0.47141437]
[1721313472965,0.07717479,64243.0,64241.0,0.155663]
[1721313473212,0.07917479,64243.0,64242.0,0.47263287]
[1721313473440,0.07917479,64243.0,64242.0,0.93833661]
[1721313473665,0.07717479,64243.0,64242.0,1.24965861]
[1721313474076,0.00834,64246.0,64245.0,1.089578]
[1721313474299,0.00834,64246.0,64245.0,0.7463047]
[1721313474566,0.00834,64246.0,64245.0,0.75191179]
[1721313474795,0.00834,64246.0,64245.0,0.00560709]
[1721313475013,0.00834,64246.0,64245.0,0.47256909]
[1721313475226,0.00834,64246.0,64245.0,0.466962]
[1721313475449,0.00834,64246.0,64245.0,0.47256909]
[1721313475896,0.00834,64246.0,64245.0,0.78387709]
[1721313476122,0.00834,64246.0,64245.0,0.893397]
[1721313476340,0.00834,64246.0,64245.0,0.582089]
[1721313477653,0.00834,64246.0,64245.0,0.47256909]
[1721313477859,0.05334,64246.0,64245.0,0.16126109]
[1721313478192,0.05334,64246.0,64245.0,0.00560709]
[1721313478193,0.831597,64246.0,64245.0,0.00560709]
[1721313478433,0.05334,64246.0,64245.0,0.00560709]
[1721313478670,0.002794,64245.0,64242.0,0.15566]
[1721313478872,0.07717479,64243.0,64242.0,0.0778321]
[1721313479084,0.07717479,64243.0,64241.0,0.155663]
[1721313479085,0.002794,64242.0,64241.0,0.155663]
[1721313479507,0.002794,64242.0,64227.0,0.0865]
[1721313479508,0.07717479,64243.0,64242.0,0.466983]
[1721313480217,0.07717479,64243.0,64242.0,0.155661]
[1721313480442,0.07717479,64243.0,64228.0,0.15438174]
[1721313480443,0.045,64236.0,64228.0,0.15438174]
[1721313480663,0.07717479,64236.0,64221.0,0.005]
[1721313480886,0.07717479,64236.0,64235.0,0.467034]
[1721313481097,0.07717479,64236.0,64213.0,0.1]
[1721313481098,0.002794,64242.0,64231.0,0.005]
[1721313481351,0.07717479,64243.0,64242.0,0.157661]
[1721313481567,0.00834,64246.0,64245.0,0.78327]
[1721313481777,0.00834,64246.0,64245.0,1.463098]
[1721313482005,0.00834,64246.0,64245.0,1.468098]
[1721313482228,0.00834,64246.0,64245.0,1.779406]
[1721313482892,0.00834,64251.0,64248.0,1.094525]
[1721313483107,0.00834,64251.0,64248.0,1.24390674]
[1721313483349,0.00834,64251.0,64248.0,1.71454931]
[1721313483567,0.002794,64265.0,64264.0,0.155608]
[1721313483779,0.07717479,64266.0,64265.0,0.466816]
[1721313484004,0.07717479,64266.0,64265.0,0.93240874]
[1721313484227,0.07717479,64266.0,64248.0,0.15434957]
[1721313484228,0.07717479,64266.0,64254.0,0.04336166]
[1721313484229,0.045,64255.0,64254.0,0.04336166]
[1721313484431,0.045,64255.0,64254.0,0.00835145]
[1721313484644,0.002794,64256.0,64255.0,0.155629]
[1721313484858,0.045,64264.0,64263.0,0.15561]
[1721313485196,0.045,64265.0,64260.0,0.311232]
[1721313485402,0.045,64265.0,64263.0,0.00622817]
[1721313485615,0.17127479,64266.0,64261.0,0.15438174]
[1721313485616,0.045,64263.0,64261.0,0.15438174]
[1721313485826,0.045,64262.0,64245.0,0.311305]
[1721313486017,0.17127479,64266.0,64253.0,0.005]
[1721313486276,0.09117479,64266.0,64265.0,0.155605]
[1721313486485,0.09117479,64266.0,64262.0,0.311221]
[1721313486696,0.09117479,64266.0,64254.0,0.15438174]
[1721313486697,0.045,64261.0,64254.0,0.15438174]
[1721313486912,0.07717479,64259.0,64258.0,0.155622]
[1721313487128,0.07717479,64259.0,64258.0,0.778112]
[1721313487346,0.07717479,64259.0,64258.0,1.089357]
[1721313487580,0.07717479,64266.0,64265.0,0.155605]
[1721313487787,0.00834,64267.0,64266.0,0.466809]
[1721313488022,0.00834,64267.0,64266.0,1.24360274]
[1721313488230,0.00834,64267.0,64266.0,1.24981546]
[1721313488452,0.00834,64267.0,64266.0,1.37489701]
[1721313490693,0.00834,64267.0,64266.0,1.06369101]
[1721313491148,0.00834,64267.0,64266.0,2.11320301]
[1721313491396,0.00084,64273.0,64266.0,2.11320301]
[1721313491397,0.00084,64273.0,64272.0,0.466765]
[1721313491622,0.00084,64273.0,64272.0,1.24350074]
[1721313491852,0.00084,64273.0,64272.0,1.37402683]
[1721313493396,0.00084,64273.0,64272.0,0.44049583]
[1721313493661,0.156426,64273.0,64272.0,0.00617602]
[1721313493893,0.96117,64273.0,64272.0,0.00617602]
[1721313494123,0.96117,64273.0,64252.0,0.2794]
[1721313494124,0.045,64271.0,64251.0,0.2794]
[1721313494333,0.13824,64273.0,64255.0,0.155629]
[1721313494334,0.07717479,64256.0,64255.0,0.155629]
[1721313494545,0.07717479,64256.0,64255.0,0.62126974]
[1721313494766,0.1071,64259.0,64255.0,0.00562727]
[1721313494982,0.07717479,64256.0,64255.0,0.16125627]
[1721313495200,0.07717479,64256.0,64255.0,0.20572573]
[1721313495428,0.0621,64259.0,64257.0,0.155624]
[1721313495648,0.0621,64259.0,64255.0,0.055724]
[1721313495883,0.07717479,64256.0,64248.0,0.311289]
[1721313496119,0.07717479,64256.0,64241.0,0.1]
[1721313496120,0.0621,64259.0,64251.0,0.2794]
[1721313496354,0.002,64259.0,64258.0,0.746267]
[1721313496600,0.002,64259.0,64258.0,1.52813874]
[1721313496814,0.002,64259.0,64258.0,1.83938374]
[1721313497059,0.002,64259.0,64258.0,1.83438374]
[1721313497522,0.002794,64271.0,64258.0,0.75002674]
[1721313497770,0.0606,64272.0,64268.0,0.311194]
[1721313498021,0.0606,64272.0,64271.0,0.155591]
[1721313498222,0.0606,64272.0,64271.0,0.30997274]
[1721313498667,0.00084,64273.0,64272.0,0.155588]
[1721313498916,0.00084,64273.0,64272.0,0.62114674]
[1721313499154,0.00084,64273.0,64272.0,0.71437961]
[1721313499396,0.00084,64273.0,64272.0,0.24761461]
[1721313499639,0.00084,64273.0,64272.0,0.15438174]
[1721313500055,0.00084,64273.0,64272.0,0.30996974]
[1721313500267,0.00084,64273.0,64272.0,0.15438174]
[1721313501310,0.15561,64263.0,64262.0,0.0461707]
[1721313501526,0.15561,64263.0,64249.0,0.155642]
[1721313501527,0.0611,64255.0,64249.0,0.155642]
[1721313501752,0.0611,64255.0,64250.0,0.31002174]
[1721313502013,0.045,64253.0,64250.0,0.15438174]
[1721313502227,0.0611,64255.0,64242.0,0.000913]
[1721313502228,0.002794,64250.0,64242.0,0.000913]
[1721313502520,0.417363,64255.0,64244.0,0.155655]
[1721313502521,0.155645,64249.0,64244.0,0.155655]
[1721313502750,0.07717479,64256.0,64244.0,0.155655]
[1721313502751,0.155615,64261.0,64255.0,0.155628]
[1721313502998,0.02884,64273.0,64269.0,0.155595]
[1721313502999,0.00584,64273.0,64269.0,0.155595]
[1721313503204,0.00584,64273.0,64267.0,0.155599]
[1721313503421,0.002794,64271.0,64270.0,0.00556758]
[1721313503646,0.00584,64273.0,64271.0,0.311182]
[1721313503869,0.00584,64273.0,64270.0,0.15438174]
[1721313503870,0.07717479,64272.0,64270.0,0.16115958]
[1721313504086,0.07996879,64272.0,64271.0,0.15438174]
[1721313504319,0.07717479,64272.0,64271.0,0.15438174]
[1721313504764,0.155594,64270.0,64263.0,0.311219]
[1721313504991,0.07717479,64272.0,64266.0,0.311205]
[1721313505204,0.07717479,64272.0,64267.0,0.15438174]
[1721313505205,0.002794,64269.0,64267.0,0.15438174]
[1721313505417,0.07717479,64272.0,64267.0,0.15438174]
[1721313505659,0.155598,64268.0,64267.0,0.15438174]
[1721313505868,0.045,64268.0,64267.0,0.19439968]
[1721313506084,0.155596,64269.0,64267.0,0.19439968]
[1721313506302,0.045,64268.0,64257.0,0.311247]
[1721313506514,0.07717479,64265.0,64258.0,0.15438174]
[1721313506742,0.200615,64261.0,64258.0,0.15438174]
[1721313506956,0.155611,64263.0,64259.0,0.06212697]
[1721313507193,0.155614,64262.0,64259.0,0.21650871]
[1721313507397,0.155614,64262.0,64248.0,0.2794]
[1721313507398,0.155629,64256.0,64251.0,0.155638]
[1721313507625,0.1062,64260.0,64246.0,0.15565]
[1721313507626,0.15564,64251.0,64246.0,0.15565]
[1721313507839,0.045,64254.0,64247.0,0.21050555]
[1721313508117,0.045,64254.0,64242.0,0.000913]
[1721313508118,0.155645,64249.0,64246.0,0.15438174]
[1721313508322,0.155641,64251.0,64246.0,0.15438174]
[1721313508546,0.155641,64251.0,64242.0,0.000913]
[1721313508547,0.045,64258.0,64247.0,0.15438174]
[1721313508778,0.002794,64259.0,64248.0,0.01543817]
[1721313508997,0.155623,64258.0,64253.0,0.155634]
[1721313509209,0.155623,64258.0,64254.0,0.15438174]
[1721313509425,0.0612,64260.0,64256.0,0.155626]
[1721313509638,0.0612,64260.0,64257.0,0.15749403]
[1721313509856,0.0612,64260.0,64259.0,0.15562]
[1721313510076,0.311187,64270.0,64259.0,0.15562]
[1721313510077,0.0632,64266.0,64259.0,0.15438174]
[1721313510306,0.155608,64264.0,64259.0,0.31000074]
[1721313510537,0.155615,64262.0,64259.0,0.15438174]
[1721313510793,0.045,64258.0,64239.0,0.316333]
[1721313511035,0.07717479,64265.0,64251.0,0.49832856]
[1721313511036,0.160622,64259.0,64251.0,0.49832856]
[1721313511256,0.160622,64259.0,64247.0,0.155647]
[1721313511257,0.155637,64252.0,64247.0,0.155647]
[1721313511496,0.155644,64249.0,64247.0,0.15438174]
[1721313511731,0.1403,64251.0,64247.0,0.15438174]
[1721313511985,0.1403,64251.0,64233.0,0.005]
[1721313511986,0.045,64246.0,64237.0,0.311342]
[1721313512250,0.07717479,64250.0,64231.0,0.0621]
[1721313512251,0.58914979,64243.0,64231.0,0.311373]
[1721313512486,0.58914979,64243.0,64226.0,0.062345]
[1721313512487,0.96376679,64243.0,64226.0,0.062345]
[1721313512722,1.06436679,64243.0,64226.0,0.062345]
[1721313512945,1.06436679,64243.0,64224.0,0.311409]
[1721313512946,1.46993216,64243.0,64224.0,0.311409]
[1721313513210,1.46993216,64243.0,64226.0,0.155699]
[1721313513437,1.46993216,64243.0,64227.0,0.155696]
[1721313513438,1.37568379,64243.0,64227.0,0.155696]
[1721313513664,1.06436679,64243.0,64231.0,0.155687]
[1721313513893,1.06436679,64243.0,64229.0,0.005]
[1721313513894,0.1639,64243.0,64229.0,0.005]
[1721313514120,0.1409,64243.0,64238.0,0.155669]
[1721313514347,0.1409,64243.0,64231.0,0.00311353]
[1721313514348,0.15565,64247.0,64242.0,0.1752322]
[1721313514570,0.1468,64250.0,64247.0,0.155647]
[1721313514801,0.1468,64250.0,64243.0,0.15438174]
[1721313514802,0.158438,64249.0,64243.0,0.31003874]
[1721313515067,0.158438,64249.0,64248.0,0.00567063]
[1721313515068,0.155644,64249.0,64248.0,0.00567063]
[1721313515287,0.155644,64249.0,64243.0,0.15438174]
[1721313515288,0.045,64248.0,64243.0,0.15438174]
[1721313515518,0.045,64248.0,64242.0,0.0165712]
[1721313515519,0.466975,64243.0,64242.0,0.000913]
[1721313515800,0.155658,64243.0,64242.0,0.000913]
[1721313516023,0.045,64246.0,64242.0,0.000913]
[1721313516024,0.155657,64244.0,64242.0,0.000913]
[1721313516257,0.12217479,64249.0,64242.0,0.0477053]
[1721313516258,0.155652,64246.0,64242.0,0.0477053]
[1721313516505,0.002794,64249.0,64243.0,0.15438174]
[1721313516732,0.07717479,64244.0,64243.0,0.15438174]
[1721313516967,0.07717479,64244.0,64242.0,0.000913]
[1721313517224,0.823292,64243.0,64242.0,0.000913]
[1721313517443,0.0701,64250.0,64249.0,0.77822]
[1721313517444,0.005,64250.0,64249.0,0.77822]
[1721313517661,0.005,64250.0,64249.0,0.70607574]
[1721313517887,0.005,64250.0,64249.0,1.02303039]
[1721313518560,0.002794,64261.0,64258.0,0.155622]
[1721313518775,0.002794,64257.0,64256.0,0.155627]
[1721313519001,0.002794,64261.0,64259.0,0.00562685]
[1721313519230,0.0602,64262.0,64259.0,0.15438174]
[1721313519468,0.0602,64262.0,64260.0,0.00562287]
[1721313519729,0.356199,64268.0,64267.0,0.1556]
[1721313519730,0.0639,64268.0,64267.0,0.1556]
[1721313519970,0.0639,64268.0,64266.0,0.155603]
[1721313519971,0.002794,64267.0,64266.0,0.155603]
[1721313521283,0.0639,64268.0,64266.0,0.155603]
[1721313522181,0.009,64267.0,64266.0,0.001]
[1721313522428,0.832002,64267.0,64266.0,0.001]
[1721313522633,0.832002,64267.0,64259.0,0.155619]
[1721313522634,0.155605,64265.0,64259.0,0.155619]
[1721313522847,0.07717479,64260.0,64259.0,0.15438174]
[1721313523055,0.07717479,64260.0,64259.0,0.31000174]
[1721313523755,0.07717479,64260.0,64259.0,0.62124174]
[1721313523970,0.07717479,64260.0,64259.0,0.71449121]
[1721313524635,0.07717479,64260.0,64259.0,0.40325121]
[1721313525271,0.06717479,64260.0,64259.0,0.40325121]
[1721313525501,0.07017479,64260.0,64259.0,0.71449121]
[1721313525777,0.003,64260.0,64259.0,0.71449121]
[1721313525991,0.003,64260.0,64259.0,1.02573121]
[1721313526679,0.002794,64267.0,64265.0,0.155605]
[1721313526895,0.0639,64268.0,64265.0,0.35666904]
[1721313527109,0.0639,64268.0,64267.0,0.1556]
[1721313527351,0.0639,64268.0,64265.0,0.20106404]
[1721313527352,0.045,64271.0,64269.0,0.155595]
[1721313527571,0.045,64271.0,64268.0,0.155598]
[1721313527805,0.045,64271.0,64266.0,0.15438174]
[1721313527806,0.200593,64270.0,64266.0,0.15438174]
[1721313528033,0.045,64268.0,64267.0,0.051227]
[1721313528309,0.045,64268.0,64243.0,0.0778]
[1721313528310,0.0641,64259.0,64243.0,0.0778]
[1721313528530,0.0641,64259.0,64239.0,0.155667]
[1721313528531,0.23283179,64244.0,64239.0,0.155667]
[1721313528766,0.23283179,64244.0,64243.0,0.015658]
[1721313528767,0.07717479,64244.0,64243.0,0.015658]
[1721313529030,0.07717479,64244.0,64242.0,0.000913]
[1721313529232,0.215658,64243.0,64242.0,0.000913]
[1721313529457,0.06,64243.0,64242.0,0.000913]
[1721313529905,0.06,64243.0,64242.0,0.00660089]
[1721313529906,0.883292,64243.0,64242.0,0.00660089]
[1721313530121,0.571975,64243.0,64242.0,0.000913]
[1721313530986,0.906292,64243.0,64242.0,0.000913]
[1721313531287,1.296809,64243.0,64242.0,0.000913]
[1721313531499,1.64888775,64243.0,64242.0,0.000913]
[1721313531738,1.96020382,64243.0,64242.0,0.000913]
[1721313532396,1.95820382,64243.0,64242.0,0.000913]
[1721313532608,1.95820382,64243.0,64209.0,0.311479]
[1721313532609,0.045,64218.0,64203.0,0.062368]
[1721313532824,0.155721,64218.0,64216.0,0.46304871]
[1721313533036,0.062,64219.0,64213.0,0.155731]
[1721313533254,0.062,64219.0,64217.0,0.00578747]
[1721313533255,0.158514,64218.0,64217.0,0.00578747]
[1721313533465,0.045,64216.0,64214.0,0.0467213]
[1721313533676,0.200724,64216.0,64214.0,0.0467213]
[1721313533889,0.062,64219.0,64201.0,0.06237]
[1721313533890,0.002794,64213.0,64201.0,0.06237]
[1721313534103,0.07717479,64215.0,64202.0,0.15438174]
[1721313534104,0.002794,64215.0,64202.0,0.15438174]
[1721313534327,0.155727,64215.0,64209.0,0.15574]
[1721313534544,0.155727,64215.0,64213.0,0.001]
[1721313534545,0.002794,64214.0,64213.0,0.001]
[1721313535259,0.846645,64214.0,64213.0,0.001]
[1721313535703,1.158103,64214.0,64213.0,0.001]
[1721313535915,1.158103,64214.0,64200.0,0.155762]
[1721313535916,0.155752,64205.0,64200.0,0.155762]
[1721313536133,0.002794,64204.0,64201.0,0.31014174]
[1721313536382,0.002794,64205.0,64202.0,0.155757]
[1721313536595,0.002794,64206.0,64202.0,0.155758]
[1721313536806,0.155749,64206.0,64201.0,0.21672548]
[1721313537033,0.002794,64208.0,64202.0,0.05282605]
[1721313537248,0.07717479,64206.0,64203.0,0.31151]
[1721313537473,0.07717479,64206.0,64204.0,0.15438174]
[1721313537685,0.002794,64204.0,64193.0,0.320722]
[1721313537924,0.002794,64204.0,64194.0,0.18957694]
[1721313538169,0.155758,64202.0,64197.0,0.15577]
[1721313538394,0.002794,64201.0,64197.0,0.15438174]
[1721313538623,0.311482,64210.0,64198.0,0.54810063]
[1721313538624,0.075,64210.0,64198.0,0.54810063]
[1721313538921,0.045,64208.0,64198.0,0.23656663]
[1721313539027,0.045,64208.0,64202.0,0.155757]
[1721313539028,0.045,64207.0,64202.0,0.155757]
[1721313539277,0.003794,64206.0,64203.0,0.15438174]
[1721313539500,0.001,64206.0,64204.0,0.155752]
[1721313539707,0.001,64206.0,64204.0,0.31013274]
[1721313539922,0.001,64206.0,64204.0,0.21794751]
[1721313540144,0.001,64206.0,64205.0,0.155751]
[1721313540359,0.001,64206.0,64202.0,0.014]
[1721313540360,0.045,64203.0,64202.0,0.014]
[1721313540610,0.045,64203.0,64168.0,0.09263508]
[1721313540611,0.0649,64205.0,64191.0,0.03123]
[1721313540834,0.07717479,64200.0,64197.0,0.155769]
[1721313541051,0.07717479,64200.0,64198.0,0.31014874]
[1721313541278,0.07717479,64200.0,64198.0,0.31609557]
[1721313541514,0.07717479,64200.0,64198.0,0.32709557]
[1721313541754,0.06440407,64205.0,64204.0,0.155753]
[1721313541980,0.07996879,64208.0,64203.0,0.155754]
[1721313542228,0.045,64207.0,64203.0,0.15438174]
[1721313542444,0.002794,64206.0,64205.0,0.155749]
[1721313542688,0.279219,64218.0,64212.0,0.155732]
[1721313542903,0.279219,64218.0,64205.0,0.31605141]
[1721313542904,0.155739,64210.0,64205.0,0.31605141]
[1721313543171,0.045,64215.0,64209.0,0.15574]
[1721313543385,0.07717479,64211.0,64207.0,0.155746]
[1721313543605,0.07717479,64211.0,64206.0,0.06758455]
[1721313543851,0.15567479,64218.0,64212.0,0.311467]
[1721313544085,0.12717479,64244.0,64224.0,0.31141]
[1721313544086,0.0786,64228.0,64224.0,0.31141]
[1721313544317,0.002794,64239.0,64225.0,0.15749537]
[1721313544318,0.0786,64234.0,64225.0,0.15749537]
[1721313544544,0.07996879,64233.0,64230.0,0.155689]
[1721313544786,0.07996879,64233.0,64225.0,0.15438174]
[1721313544787,0.045,64231.0,64225.0,0.15438174]
[1721313545010,0.045,64219.0,64209.0,0.311481]
[1721313545267,0.07717479,64217.0,64216.0,0.155724]
[1721313545504,0.07717479,64226.0,64216.0,0.15438174]
[1721313545724,0.07717479,64226.0,64219.0,0.155716]
[1721313545725,0.46304871,64224.0,64219.0,0.155716]
[1721313545952,0.07717479,64226.0,64213.0,0.311461]
[1721313545953,0.045,64219.0,64213.0,0.311461]
[1721313546175,0.07717479,64216.0,64215.0,0.467179]
[1721313546399,0.07717479,64226.0,64218.0,0.311434]
[1721313546676,0.07717479,64226.0,64215.0,0.15438174]
[1721313546677,0.002794,64225.0,64219.0,0.00311409]
[1721313546891,0.002794,64225.0,64222.0,0.155708]
[1721313547119,0.07717479,64226.0,64222.0,0.31008974]
[1721313547335,0.07717479,64226.0,64223.0,0.155707]
[1721313547556,0.07717479,64226.0,64224.0,0.155704]
[1721313547787,0.002794,64232.0,64231.0,0.155686]
[1721313548031,0.002794,64232.0,64224.0,0.46578774]
[1721313548032,0.045,64231.0,64225.0,0.00584001]
[1721313548247,0.002794,64230.0,64225.0,0.311404]
[1721313548459,0.07717479,64226.0,64225.0,0.467107]
[1721313548889,0.07717479,64226.0,64209.0,0.05019718]
[1721313548890,0.155704,64225.0,64209.0,0.05019718]
[1721313549120,0.07717479,64217.0,64216.0,0.467172]
[1721313549331,0.045,64223.0,64216.0,0.467172]
[1721313549332,0.20072,64218.0,64216.0,0.23224434]
[1721313549556,0.20072,64218.0,64206.0,0.16758455]
[1721313549557,0.045,64218.0,64217.0,0.15438174]
[1721313549780,0.07717479,64219.0,64217.0,0.15438174]
[1721313549997,0.07717479,64219.0,64218.0,0.155719]
[1721313550215,0.045,64216.0,64212.0,0.155733]
[1721313550469,0.045,64214.0,64206.0,0.22333155]
[1721313550689,0.07717479,64212.0,64209.0,0.15574]
[1721313550939,0.002794,64211.0,64210.0,0.15438174]
[1721313551161,0.0652,64221.0,64216.0,0.008]
[1721313551374,0.002794,64220.0,64219.0,0.467148]
[1721313551591,0.4665,64222.0,64219.0,0.15438174]
[1721313551858,0.4665,64222.0,64220.0,0.31009574]
[1721313551859,0.002794,64221.0,64220.0,0.31009574]
[1721313552073,0.4665,64222.0,64221.0,0.77856]
[1721313552291,0.4665,64222.0,64221.0,1.06137539]
[1721313552505,0.4665,64222.0,64221.0,0.28281539]
[1721313552718,0.4665,64222.0,64221.0,0.31009374]
[1721313552942,0.4665,64222.0,64221.0,0.93294174]
[1721313553161,0.4665,64222.0,64218.0,0.311435]
[1721313553383,0.4665,64222.0,64219.0,0.46581574]
[1721313553599,0.4665,64222.0,64221.0,0.467136]
[1721313553815,0.4665,64222.0,64221.0,0.25087159]
[1721313554033,0.045,64217.0,64207.0,0.311488]
[1721313554296,0.045,64217.0,64200.0,0.1466]
[1721313554297,0.07717479,64216.0,64200.0,0.1466]
[1721313554530,0.002794,64215.0,64214.0,0.467187]
[1721313554795,0.07717479,64216.0,64209.0,0.311479]
[1721313555040,0.0619,64213.0,64210.0,0.31011974]
[1721313555489,0.002794,64212.0,64210.0,0.31011974]
[1721313555742,0.237128,64215.0,64210.0,0.31011974]
[1721313555743,0.0814,64215.0,64211.0,0.155736]
[1721313556000,0.07717479,64216.0,64212.0,0.155734]
[1721313556267,0.23289979,64216.0,64210.0,0.46585474]
[1721313556530,0.23289979,64216.0,64211.0,0.155735]
[1721313556812,0.23289979,64216.0,64210.0,0.54378881]
[1721313556813,0.4665,64222.0,64221.0,0.92226]
[1721313557025,0.4665,64222.0,64221.0,1.38806574]
[1721313557749,0.4665,64222.0,64210.0,0.35733407]
[1721313557997,0.07717479,64219.0,64218.0,0.155719]
[1721313558248,0.4665,64222.0,64218.0,0.155719]
[1721313558249,0.4665,64222.0,64221.0,0.467136]
[1721313558496,0.4665,64222.0,64221.0,1.24436574]
[1721313558723,0.4665,64222.0,64221.0,1.36930231]
[1721313559638,0.4665,64222.0,64221.0,1.68072631]
[1721313560103,0.4665,64222.0,64221.0,1.37930231]
[1721313560545,0.4665,64222.0,64221.0,1.37430231]
[1721313560765,0.4665,64222.0,64221.0,0.60174231]
[1721313560991,0.4665,64222.0,64221.0,0.63251774]
[1721313561265,0.4665,64222.0,64221.0,1.25536574]
[1721313561486,0.4665,64222.0,64221.0,0.94394174]
[1721313561701,0.07717479,64230.0,64228.0,0.155695]
[1721313561999,0.07717479,64230.0,64229.0,0.15438174]
[1721313562216,0.07717479,64230.0,64229.0,0.40336191]
[1721313562443,0.07717479,64230.0,64229.0,0.25348539]
[1721313562669,0.07717479,64230.0,64229.0,0.00581548]
[1721313562900,0.07717479,64230.0,64225.0,0.155702]
[1721313562901,0.12217479,64230.0,64225.0,0.155702]
[1721313563138,0.002794,64229.0,64226.0,0.15438174]
[1721313563366,0.07717479,64230.0,64226.0,0.15438174]
[1721313563367,0.07800479,64230.0,64228.0,0.002]
[1721313563828,0.27869479,64230.0,64226.0,0.37650588]
[1721313564062,0.23369479,64230.0,64227.0,0.06879189]
[1721313564228,0.07800479,64230.0,64227.0,0.06879189]
[1721313564954,0.07800479,64230.0,64227.0,0.22448889]
[1721313565210,0.07800479,64230.0,64229.0,0.155692]
[1721313565436,0.00083,64230.0,64229.0,0.69732742]
[1721313565659,0.00083,64230.0,64229.0,1.00871242]
[1721313567106,0.00083,64230.0,64229.0,0.69732742]
[1721313567341,0.00083,64230.0,64229.0,0.93284374]
[1721313568449,0.00083,64230.0,64229.0,0.31007374]
[1721313568676,0.00083,64230.0,64229.0,0.62345874]
[1721313568922,0.00083,64230.0,64229.0,0.31207374]
[1721313569138,0.04583,64230.0,64229.0,0.002]
[1721313569363,1.28206,64230.0,64229.0,0.002]
[1721313569644,0.99368,64230.0,64229.0,0.002]
[1721313570323,0.6373,64230.0,64229.0,0.002]
[1721313570552,0.6373,64230.0,64229.0,0.62145874]
[1721313570553,0.00083,64230.0,64229.0,0.62145874]
[1721313570787,0.00083,64230.0,64229.0,0.99498961]
[1721313571016,0.00083,64230.0,64229.0,1.0007898]
[1721313571743,0.00083,64230.0,64229.0,0.6894048]
[1721313571978,0.00083,64230.0,64229.0,0.00580019]
[1721313571979,0.5129,64230.0,64229.0,0.00580019]
[1721313572271,0.5129,64230.0,64222.0,0.311418]
[1721313572272,0.5129,64230.0,64223.0,0.155706]
[1721313572538,0.5129,64230.0,64222.0,0.311418]
[1721313572539,0.12217479,64227.0,64224.0,0.31008574]
[1721313572829,0.00083,64230.0,64224.0,0.46578874]
[1721313573034,0.045,64224.0,64210.0,0.1475]
[1721313573264,0.045,64224.0,64222.0,0.155709]
[1721313573554,0.07717479,64226.0,64223.0,0.155707]
[1721313574026,0.045,64224.0,64222.0,0.15438174]
[1721313574280,0.23287479,64226.0,64222.0,0.31009074]
[1721313574542,0.045,64224.0,64222.0,0.31009074]
[1721313574808,0.155702,64225.0,64222.0,0.15438174]
[1721313575032,0.200705,64224.0,64222.0,0.15638174]
[1721313575271,0.045,64221.0,64212.0,0.311465]
[1721313575510,0.045,64218.0,64215.0,0.155726]
[1721313575759,0.155716,64220.0,64216.0,0.31010474]
[1721313576010,0.155712,64221.0,64216.0,0.31010474]
[1721313576254,0.0627,64223.0,64218.0,0.155718]
[1721313576471,0.0752,64229.0,64223.0,0.155706]
[1721313576472,0.1098,64228.0,64223.0,0.155706]
[1721313576684,0.1098,64228.0,64219.0,0.24768171]
[1721313576685,0.200702,64225.0,64224.0,0.15438174]
[1721313576901,0.045,64220.0,64215.0,0.155725]
[1721313577124,0.045,64217.0,64216.0,0.15438174]
[1721313577481,0.20072,64218.0,64216.0,0.15438174]
[1721313577570,0.20072,64218.0,64216.0,0.16024021]
[1721313577571,0.045,64217.0,64216.0,0.16024021]
[1721313577786,0.045,64220.0,64216.0,0.16024021]
[1721313578002,0.311425,64221.0,64216.0,0.16024021]
[1721313578003,0.200717,64219.0,64216.0,0.16024021]
[1721313578217,1.135054,64217.0,64216.0,0.00585847]
[1721313578434,0.82361,64217.0,64216.0,0.00585847]
[1721313578657,0.82361,64217.0,64208.0,0.155743]
[1721313578658,0.155732,64213.0,64208.0,0.155743]
[1721313578877,0.045,64210.0,64209.0,0.15438174]
[1721313579104,0.311458,64214.0,64209.0,0.15438174]
[1721313579105,0.512204,64212.0,64209.0,0.15438174]
[1721313579325,0.356444,64217.0,64209.0,0.15438174]
[1721313579548,0.155727,64215.0,64211.0,0.155735]
[1721313579757,0.155727,64215.0,64210.0,0.05447502]
[1721313579758,0.045,64218.0,64215.0,0.155726]
[1721313579988,0.045,64218.0,64216.0,0.15438174]
[1721313580209,0.777923,64222.0,64217.0,0.03101077]
[1721313580210,0.155715,64220.0,64217.0,0.03101077]
[1721313580452,0.155716,64220.0,64218.0,0.15438174]